[Event "*** Titled Tuesday 3|2 Blitz (Early)"]
[Site "Chess.com"]
[Date "2016.11.01"]
[Round "4"]
[White "Divertissement"]
[Black "GianmarcoVaR"]
[Result "0-1"]
[WhiteElo "2348"]
[BlackElo "2420"]
[TimeControl "180+2"]
[EndTime "11:51:13 PDT"]
[Termination "GianmarcoVaR won by checkmate"]

1. e4 {[%clk 0:03:01.4]} 1... c6 {[%clk 0:02:52.8]} 2. d4 {[%clk 0:02:58.8]}
2... d5 {[%clk 0:02:54.7]} 3. Nd2 {[%clk 0:02:59.2]} 3... dxe4 {[%clk
0:02:56.1]} 4. Nxe4 {[%clk 0:03:01.1]} 4... Bf5 {[%clk 0:02:57.5]} 5. Ng3 {[%clk
0:03:02.5]} 5... Bg6 {[%clk 0:02:59.1]} 6. h4 {[%clk 0:03:04.2]} 6... h6 {[%clk
0:03:00.4]} 7. h5 {[%clk 0:03:05.8]} 7... Bh7 {[%clk 0:03:01.2]} 8. Nf3 {[%clk
0:03:07]} 8... e6 {[%clk 0:03:00.7]} 9. Bd3 {[%clk 0:03:07.2]} 9... Bxd3 {[%clk
0:03:01.2]} 10. Qxd3 {[%clk 0:03:09.1]} 10... Nf6 {[%clk 0:03:02.8]} 11. Bd2
{[%clk 0:03:10]} 11... c5 {[%clk 0:03:02.9]} 12. Qb5+ {[%clk 0:02:56.2]} 12...
Qd7 {[%clk 0:03:02.7]} 13. Qxd7+ {[%clk 0:02:53.3]} 13... Nbxd7 {[%clk
0:03:03.3]} 14. O-O-O {[%clk 0:02:54.8]} 14... Bd6 {[%clk 0:03:01.5]} 15. Ne2
{[%clk 0:02:31.1]} 15... Ke7 {[%clk 0:03:02.5]} 16. Be3 {[%clk 0:02:18.3]} 16...
Rac8 {[%clk 0:02:44.6]} 17. dxc5 {[%clk 0:02:06.4]} 17... Bxc5 {[%clk
0:02:43.3]} 18. Bxc5+ {[%clk 0:01:51.1]} 18... Rxc5 {[%clk 0:02:40.7]} 19. Ng3
{[%clk 0:01:50.7]} 19... Rhc8 {[%clk 0:02:15.6]} 20. Rd2 {[%clk 0:01:47.4]}
20... Nb6 {[%clk 0:02:10.4]} 21. b3 {[%clk 0:01:19.6]} 21... Nbd5 {[%clk
0:02:08.2]} 22. Kb2 {[%clk 0:01:09.1]} 22... Nf4 {[%clk 0:02:06.5]} 23. c4
{[%clk 0:00:48.8]} 23... N4xh5 {[%clk 0:02:07.3]} 24. Nxh5 {[%clk 0:00:47.2]}
24... Rxh5 {[%clk 0:02:07.6]} 25. Rhd1 {[%clk 0:00:46]} 25... b5 {[%clk
0:02:07.7]} 26. cxb5 {[%clk 0:00:43.7]} 26... Rxb5 {[%clk 0:02:08.4]} 27. Nd4
{[%clk 0:00:45]} 27... Rbc5 {[%clk 0:02:09]} 28. Nf3 {[%clk 0:00:28.6]} 28...
R8c7 {[%clk 0:01:53.8]} 29. Re2 {[%clk 0:00:20.6]} 29... Nd5 {[%clk 0:01:54.1]}
30. Re5 {[%clk 0:00:18.2]} 30... Rc2+ {[%clk 0:01:48]} 31. Ka3 {[%clk
0:00:17.1]} 31... Nc3 {[%clk 0:01:44.6]} 32. Ra1 {[%clk 0:00:18]} 32... Rxf2
{[%clk 0:01:33.6]} 33. Nd4 {[%clk 0:00:19]} 33... Rxg2 {[%clk 0:01:13.9]} 34.
Re3 {[%clk 0:00:17.2]} 34... Nd5 {[%clk 0:01:07.1]} 35. Ree1 {[%clk 0:00:17]}
35... g6 {[%clk 0:01:05.6]} 36. Rad1 {[%clk 0:00:16.7]} 36... Rc5 {[%clk
0:01:00.7]} 37. b4 {[%clk 0:00:14.7]} 37... Rc3+ {[%clk 0:00:58.1]} 38. Nb3
{[%clk 0:00:15.9]} 38... Rcc2 {[%clk 0:00:59.4]} 39. Ra1 {[%clk 0:00:10]} 39...
Nb6 {[%clk 0:00:48.5]} 40. Nd4 {[%clk 0:00:07]} 40... Rc3+ {[%clk 0:00:43.4]}
41. Nb3 {[%clk 0:00:08.7]} 41... h5 {[%clk 0:00:42.5]} 42. Rad1 {[%clk
0:00:09.1]} 42... Nc4+ {[%clk 0:00:42.9]} 43. Ka4 {[%clk 0:00:10.3]} 43... Nb2+
{[%clk 0:00:44.6]} 44. Kb5 {[%clk 0:00:11.5]} 44... Nxd1 {[%clk 0:00:46.5]} 45.
Rxd1 {[%clk 0:00:13.4]} 45... h4 {[%clk 0:00:40.4]} 46. Nc5 {[%clk 0:00:14.9]}
46... h3 {[%clk 0:00:40.5]} 47. Rd7+ {[%clk 0:00:16.3]} 47... Kf8 {[%clk
0:00:41.4]} 48. Ne4 {[%clk 0:00:14.2]} 48... Rf3 {[%clk 0:00:31.8]} 49. Rd8+
{[%clk 0:00:14.4]} 49... Kg7 {[%clk 0:00:32.1]} 50. Nd6 {[%clk 0:00:14.7]} 50...
h2 {[%clk 0:00:29.4]} 51. Ne8+ {[%clk 0:00:16.3]} 51... Kh7 {[%clk 0:00:30.1]}
52. Rd1 {[%clk 0:00:15.2]} 52... Rg1 {[%clk 0:00:31.3]} 53. Rd7 {[%clk
0:00:15.1]} 53... h1=Q {[%clk 0:00:31.1]} 54. Nd6 {[%clk 0:00:16.7]} 54... Rd1
{[%clk 0:00:28]} 55. Kc5 {[%clk 0:00:14.2]} 55... Rc3+ {[%clk 0:00:26.9]} 56.
Kb5 {[%clk 0:00:15.1]} 56... Qc6+ {[%clk 0:00:25.4]} 57. Ka5 {[%clk 0:00:16.5]}
57... Ra3# {[%clk 0:00:26.8]} 0-1

[Event "*** Titled Tuesday 3|2 Blitz (Early)"]
[Site "Chess.com"]
[Date "2016.11.01"]
[Round "4"]
[White "Gabrielian_Artur"]
[Black "uzbektiger95"]
[Result "1/2-1/2"]
[WhiteElo "2552"]
[BlackElo "2621"]
[TimeControl "180+2"]
[EndTime "11:51:27 PDT"]
[Termination "Game drawn by agreement"]

1. e4 {[%clk 0:03:01.9]} 1... d5 {[%clk 0:03:00]} 2. exd5 {[%clk 0:03:02.1]}
2... Qxd5 {[%clk 0:03:01.9]} 3. Nc3 {[%clk 0:03:02.9]} 3... Qd6 {[%clk
0:03:03.3]} 4. d4 {[%clk 0:03:02.3]} 4... Nf6 {[%clk 0:03:05]} 5. Nf3 {[%clk
0:03:03.1]} 5... g6 {[%clk 0:03:06.6]} 6. Bc4 {[%clk 0:02:55.2]} 6... Bg7 {[%clk
0:03:07]} 7. h3 {[%clk 0:02:56.1]} 7... O-O {[%clk 0:03:08]} 8. O-O {[%clk
0:02:57.2]} 8... a6 {[%clk 0:03:09.6]} 9. Bb3 {[%clk 0:02:56]} 9... b5 {[%clk
0:03:10]} 10. Re1 {[%clk 0:02:53.2]} 10... Bb7 {[%clk 0:03:10.7]} 11. Bg5 {[%clk
0:02:52.6]} 11... Bxf3 {[%clk 0:02:55.3]} 12. Qxf3 {[%clk 0:02:53.1]} 12... Nc6
{[%clk 0:02:56.6]} 13. d5 {[%clk 0:02:44.8]} 13... Nd4 {[%clk 0:02:57.4]} 14.
Qd3 {[%clk 0:02:44.7]} 14... Nxb3 {[%clk 0:02:47.4]} 15. axb3 {[%clk 0:02:45]}
15... Rfe8 {[%clk 0:02:23]} 16. Bh4 {[%clk 0:02:27.1]} 16... b4 {[%clk
0:02:13.2]} 17. Bxf6 {[%clk 0:02:07.6]} 17... Qxf6 {[%clk 0:02:14.3]} 18. Na4
{[%clk 0:02:02.6]} 18... Qd6 {[%clk 0:02:11.3]} 19. Qc4 {[%clk 0:02:02.6]} 19...
Red8 {[%clk 0:01:56.6]} 20. Red1 {[%clk 0:01:46.6]} 20... Rdb8 {[%clk 0:01:38]}
21. Nc5 {[%clk 0:01:32.7]} 21... a5 {[%clk 0:01:36.4]} 22. Ra2 {[%clk
0:01:30.6]} 22... c6 {[%clk 0:01:31.5]} 23. Ne4 {[%clk 0:01:25.8]} 23... cxd5
{[%clk 0:01:28.7]} 24. Nxd6 {[%clk 0:01:25]} 24... dxc4 {[%clk 0:01:29.8]} 25.
Nxc4 {[%clk 0:01:26.3]} 25... Rb5 {[%clk 0:01:11.7]} 26. Rda1 {[%clk 0:01:25.8]}
26... Kf8 {[%clk 0:01:07.8]} 27. Kf1 {[%clk 0:01:23.4]} 27... Ke8 {[%clk
0:01:01.9]} 28. Ke2 {[%clk 0:01:22]} 28... Kd7 {[%clk 0:00:58.5]} 29. f4 {[%clk
0:01:03]} 29... g5 {[%clk 0:00:52]} 30. fxg5 {[%clk 0:01:00.7]} 30... Ke6 {[%clk
0:00:49.6]} 31. g4 {[%clk 0:00:58.5]} 31... Rxg5 {[%clk 0:00:48.3]} 32. Kf3
{[%clk 0:00:57.8]} 32... h5 {[%clk 0:00:48.4]} 33. Re1+ {[%clk 0:00:51.6]} 33...
Kf6 {[%clk 0:00:49.6]} 34. c3 {[%clk 0:00:44]} 34... hxg4+ {[%clk 0:00:48.4]}
35. hxg4 {[%clk 0:00:44.8]} 35... Rh8 {[%clk 0:00:48.8]} 36. Kg3 {[%clk
0:00:40.2]} 36... e6 {[%clk 0:00:43.4]} 37. Rxa5 {[%clk 0:00:38]} 37... Rxa5
{[%clk 0:00:32.3]} 38. Nxa5 {[%clk 0:00:38.5]} 38... Kg5 {[%clk 0:00:32.1]} 39.
cxb4 {[%clk 0:00:21.1]} 39... Bxb2 {[%clk 0:00:32.4]} 40. Nc4 {[%clk 0:00:19.6]}
40... Bc3 {[%clk 0:00:32.6]} 41. Rf1 {[%clk 0:00:21]} 41... f5 {[%clk
0:00:28.6]} 42. gxf5 {[%clk 0:00:22.2]} 42... exf5 {[%clk 0:00:30.5]} 43. b5
{[%clk 0:00:23.4]} 43... Rb8 {[%clk 0:00:12.8]} 44. b6 {[%clk 0:00:23.8]} 44...
Bd4 {[%clk 0:00:14.1]} 45. Rb1 {[%clk 0:00:14]} 45... Bxb6 {[%clk 0:00:13.2]}
46. Nxb6 {[%clk 0:00:15.3]} 46... Rxb6 {[%clk 0:00:15.1]} 47. b4 {[%clk
0:00:16.8]} 47... Rb5 {[%clk 0:00:14.3]} 48. Kf3 {[%clk 0:00:18.2]} 48... Kf6
{[%clk 0:00:14.6]} 49. Kf4 {[%clk 0:00:19.2]} 49... Ke6 {[%clk 0:00:14.5]} 50.
Re1+ {[%clk 0:00:20.1]} 50... Kd6 {[%clk 0:00:14.7]} 51. Rd1+ {[%clk 0:00:20.8]}
51... Kc6 {[%clk 0:00:15.9]} 52. Rd4 {[%clk 0:00:21.7]} 52... Rd5 {[%clk
0:00:12.4]} 53. Rxd5 {[%clk 0:00:22.5]} 1/2-1/2

[Event "*** Titled Tuesday 3|2 Blitz (Early)"]
[Site "Chess.com"]
[Date "2016.11.01"]
[Round "4"]
[White "psv98"]
[Black "Danirod"]
[Result "1-0"]
[WhiteElo "2620"]
[BlackElo "2479"]
[TimeControl "180+2"]
[EndTime "11:51:31 PDT"]
[Termination "psv98 won by resignation"]

1. Nf3 {[%clk 0:02:26.2]} 1... d5 {[%clk 0:02:59.4]} 2. g3 {[%clk 0:02:27.5]}
2... c5 {[%clk 0:02:59.1]} 3. Bg2 {[%clk 0:02:28.7]} 3... Nf6 {[%clk 0:03:00]}
4. O-O {[%clk 0:02:29.2]} 4... Nc6 {[%clk 0:03:00.9]} 5. d4 {[%clk 0:02:30.7]}
5... cxd4 {[%clk 0:03:02]} 6. Nxd4 {[%clk 0:02:31.4]} 6... e6 {[%clk 0:02:52.5]}
7. c4 {[%clk 0:02:31.7]} 7... Nxd4 {[%clk 0:02:46.8]} 8. Qxd4 {[%clk 0:02:31.6]}
8... dxc4 {[%clk 0:02:48.3]} 9. Qxd8+ {[%clk 0:02:27.9]} 9... Kxd8 {[%clk
0:02:49.3]} 10. Rd1+ {[%clk 0:02:14.5]} 10... Nd7 {[%clk 0:02:01.4]} 11. Nd2
{[%clk 0:02:02.9]} 11... c3 {[%clk 0:02:02.3]} 12. bxc3 {[%clk 0:02:03.6]} 12...
Kc7 {[%clk 0:02:00.3]} 13. Nc4 {[%clk 0:02:02.2]} 13... f6 {[%clk 0:01:55]} 14.
Be3 {[%clk 0:01:51.2]} 14... Nc5 {[%clk 0:01:54.5]} 15. Rab1 {[%clk 0:01:31.9]}
15... e5 {[%clk 0:01:50]} 16. Rb5 {[%clk 0:01:30.6]} 16... Ne6 {[%clk
0:01:18.3]} 17. Rdb1 {[%clk 0:01:30.3]} 17... Nd8 {[%clk 0:01:10.3]} 18. a4
{[%clk 0:01:07.8]} 18... Be6 {[%clk 0:00:54.1]} 19. Na5 {[%clk 0:00:59]} 19...
Bc8 {[%clk 0:00:26.9]} 20. Nxb7 {[%clk 0:00:54.9]} 20... Bxb7 {[%clk 0:00:28]}
21. Bxb7 {[%clk 0:00:54.6]} 21... Rb8 {[%clk 0:00:29.5]} 22. Bd5 {[%clk
0:00:54.2]} 22... Rxb5 {[%clk 0:00:28.8]} 23. axb5 {[%clk 0:00:55.4]} 23... Nb7
{[%clk 0:00:25.3]} 24. Ra1 {[%clk 0:00:39.2]} 24... Bc5 {[%clk 0:00:22.3]} 25.
Bxc5 {[%clk 0:00:35.1]} 25... Nxc5 {[%clk 0:00:24.2]} 26. Rxa7+ {[%clk
0:00:35.6]} 26... Kb6 {[%clk 0:00:25.7]} 27. Rxg7 {[%clk 0:00:34.5]} 27... Kxb5
{[%clk 0:00:27.2]} 28. h4 {[%clk 0:00:30.4]} 28... Na4 {[%clk 0:00:23]} 29. c4+
{[%clk 0:00:29.3]} 29... Kc5 {[%clk 0:00:24.3]} 30. Kg2 {[%clk 0:00:22.4]} 30...
Nc3 {[%clk 0:00:25.2]} 31. e4 {[%clk 0:00:21.3]} 31... Nd1 {[%clk 0:00:18.2]}
32. Bg8 {[%clk 0:00:18.9]} 32... h6 {[%clk 0:00:16.6]} 33. h5 {[%clk 0:00:19.3]}
33... Nc3 {[%clk 0:00:12]} 34. Kf3 {[%clk 0:00:20.5]} 34... Nb1 {[%clk
0:00:10.9]} 35. Kg4 {[%clk 0:00:19.3]} 35... Nd2 {[%clk 0:00:11.6]} 36. Kf5
{[%clk 0:00:20.3]} 36... Kd4 {[%clk 0:00:12.1]} 37. Bd5 {[%clk 0:00:10.5]} 37...
Nxc4 {[%clk 0:00:11.5]} 38. Bxc4 {[%clk 0:00:10.6]} 38... Kxc4 {[%clk
0:00:13.4]} 39. Kxf6 {[%clk 0:00:08.9]} 39... Kd4 {[%clk 0:00:14.9]} 40. f3
{[%clk 0:00:06.9]} 40... Ke3 {[%clk 0:00:16.4]} 41. Kxe5 {[%clk 0:00:05.9]}
41... Kxf3 {[%clk 0:00:18]} 42. Kf6 {[%clk 0:00:04.4]} 42... Kxe4 {[%clk
0:00:18.6]} 43. Kg6 {[%clk 0:00:04]} 43... Kf3 {[%clk 0:00:19.8]} 44. Rh7 {[%clk
0:00:03.8]} 44... Rg8+ {[%clk 0:00:21.2]} 45. Kxh6 {[%clk 0:00:05.2]} 45... Rxg3
{[%clk 0:00:21.4]} 46. Rf7+ {[%clk 0:00:06.3]} 46... Ke4 {[%clk 0:00:21.7]} 47.
Rg7 {[%clk 0:00:07]} 47... Ra3 {[%clk 0:00:22.1]} 48. Kg6 {[%clk 0:00:05.3]}
48... Ra6+ {[%clk 0:00:22.8]} 49. Kh7 {[%clk 0:00:05.8]} 49... Kf5 {[%clk
0:00:23.4]} 50. h6 {[%clk 0:00:06]} 50... Ra1 {[%clk 0:00:22.6]} 51. Rf7+ {[%clk
0:00:06.3]} 51... Ke6 {[%clk 0:00:23.5]} 52. Kg8 {[%clk 0:00:05.5]} 52... Ra8+
{[%clk 0:00:20.1]} 53. Kg7 {[%clk 0:00:05.9]} 53... Ra1 {[%clk 0:00:21.2]} 54.
h7 {[%clk 0:00:05.9]} 54... Rg1+ {[%clk 0:00:21.6]} 55. Kf8 {[%clk 0:00:07.4]}
55... Rh1 {[%clk 0:00:20.6]} 56. Kg8 {[%clk 0:00:06.4]} 56... Rg1+ {[%clk
0:00:21.5]} 57. Rg7 {[%clk 0:00:07.9]} 57... Rb1 {[%clk 0:00:22.8]} 58. Rg6+
{[%clk 0:00:08.4]} 58... Kf5 {[%clk 0:00:23.6]} 59. Rf6+ {[%clk 0:00:08.7]}
59... Kg5 {[%clk 0:00:24.1]} 60. Rf8 {[%clk 0:00:07.1]} 60... Rh1 {[%clk
0:00:23.8]} 61. h8=Q {[%clk 0:00:08]} 61... Rxh8+ {[%clk 0:00:24.3]} 62. Kxh8
{[%clk 0:00:09.4]} 1-0

[Event "*** Titled Tuesday 3|2 Blitz (Early)"]
[Site "Chess.com"]
[Date "2016.11.01"]
[Round "4"]
[White "Izoria123"]
[Black "Frolyanov_D"]
[Result "1/2-1/2"]
[WhiteElo "2569"]
[BlackElo "2452"]
[TimeControl "180+2"]
[EndTime "11:51:33 PDT"]
[Termination "Game drawn by repetition"]

1. Nf3 {[%clk 0:03:02]} 1... d5 {[%clk 0:03:00.1]} 2. g3 {[%clk 0:03:02.4]} 2...
c6 {[%clk 0:03:00.3]} 3. Bg2 {[%clk 0:03:03.4]} 3... Bg4 {[%clk 0:03:00.8]} 4.
O-O {[%clk 0:03:03.9]} 4... Nd7 {[%clk 0:03:01.6]} 5. h3 {[%clk 0:03:04.9]} 5...
Bh5 {[%clk 0:02:57.7]} 6. d3 {[%clk 0:03:04]} 6... e5 {[%clk 0:02:58.1]} 7. e4
{[%clk 0:02:52]} 7... dxe4 {[%clk 0:02:55.9]} 8. dxe4 {[%clk 0:02:53.2]} 8...
Ngf6 {[%clk 0:02:56.8]} 9. Qe2 {[%clk 0:02:52.9]} 9... Be7 {[%clk 0:02:53.4]}
10. Rd1 {[%clk 0:02:51.3]} 10... Qc7 {[%clk 0:02:47.3]} 11. Nbd2 {[%clk
0:02:51.2]} 11... O-O {[%clk 0:02:47]} 12. g4 {[%clk 0:02:07.5]} 12... Bg6
{[%clk 0:02:46.6]} 13. Nh4 {[%clk 0:02:09.1]} 13... Rfe8 {[%clk 0:02:42.5]} 14.
Nf1 {[%clk 0:01:55.5]} 14... Nc5 {[%clk 0:02:02.9]} 15. Nf5 {[%clk 0:01:28.9]}
15... Bf8 {[%clk 0:02:03]} 16. N1g3 {[%clk 0:01:18.5]} 16... Ne6 {[%clk
0:02:02.8]} 17. g5 {[%clk 0:01:19.4]} 17... Nd7 {[%clk 0:01:49.2]} 18. h4 {[%clk
0:01:17.9]} 18... Nf4 {[%clk 0:01:50]} 19. Qg4 {[%clk 0:01:17.8]} 19... Nxg2
{[%clk 0:01:47.9]} 20. Rxd7 {[%clk 0:01:12.4]} 20... Qxd7 {[%clk 0:01:18.2]} 21.
Nh6+ {[%clk 0:01:12.4]} 21... gxh6 {[%clk 0:01:19.6]} 22. Qxd7 {[%clk
0:01:14.3]} 22... Rad8 {[%clk 0:00:21.3]} 23. Qg4 {[%clk 0:01:15.2]} 23... h5
{[%clk 0:00:16.7]} 24. Nxh5 {[%clk 0:01:15]} 24... Bxh5 {[%clk 0:00:17.4]} 25.
Qxh5 {[%clk 0:01:16.9]} 25... Nf4 {[%clk 0:00:18.6]} 26. Bxf4 {[%clk 0:01:18]}
26... exf4 {[%clk 0:00:20.5]} 27. Rd1 {[%clk 0:01:04.8]} 27... Rxd1+ {[%clk
0:00:19.9]} 28. Qxd1 {[%clk 0:01:06.7]} 28... Rxe4 {[%clk 0:00:21.1]} 29. Qd7
{[%clk 0:01:03.4]} 29... f3 {[%clk 0:00:13.3]} 30. Qxb7 {[%clk 0:00:54.3]} 30...
Rg4+ {[%clk 0:00:13.8]} 31. Kh2 {[%clk 0:00:49.4]} 31... Rg2+ {[%clk 0:00:12.7]}
32. Kh3 {[%clk 0:00:49.7]} 32... Rxf2 {[%clk 0:00:12]} 33. Qxc6 {[%clk
0:00:46.2]} 33... Rf1 {[%clk 0:00:10.9]} 34. Qa8 {[%clk 0:00:40.2]} 34... Rb1
{[%clk 0:00:06.7]} 35. Qxf3 {[%clk 0:00:40.2]} 35... Rxb2 {[%clk 0:00:07.8]} 36.
c4 {[%clk 0:00:23]} 36... Rxa2 {[%clk 0:00:08.7]} 37. Qd5 {[%clk 0:00:24.2]}
37... a5 {[%clk 0:00:08.8]} 38. c5 {[%clk 0:00:23.3]} 38... Rc2 {[%clk
0:00:09.7]} 39. c6 {[%clk 0:00:24.2]} 39... a4 {[%clk 0:00:10.9]} 40. Qd7 {[%clk
0:00:25]} 40... a3 {[%clk 0:00:11.8]} 41. c7 {[%clk 0:00:26.1]} 41... a2 {[%clk
0:00:12.7]} 42. Qa4 {[%clk 0:00:25.9]} 42... Rc3+ {[%clk 0:00:12.7]} 43. Kg4
{[%clk 0:00:24.4]} 43... Rxc7 {[%clk 0:00:13]} 44. Qxa2 {[%clk 0:00:25.5]} 44...
Rc6 {[%clk 0:00:12.9]} 45. Qd5 {[%clk 0:00:24.7]} 45... Re6 {[%clk 0:00:13.7]}
46. h5 {[%clk 0:00:25.3]} 46... Ra6 {[%clk 0:00:14.1]} 47. Qd8 {[%clk
0:00:24.6]} 47... Re6 {[%clk 0:00:13.6]} 48. Kf5 {[%clk 0:00:24.4]} 48... Rd6
{[%clk 0:00:14.3]} 49. Qc8 {[%clk 0:00:23.5]} 49... Rb6 {[%clk 0:00:13.8]} 50.
h6 {[%clk 0:00:22.3]} 50... Rg6 {[%clk 0:00:14]} 51. Qa8 {[%clk 0:00:22.7]}
51... Re6 {[%clk 0:00:14.6]} 52. Qb8 {[%clk 0:00:21.3]} 52... Rg6 {[%clk
0:00:15.3]} 53. Qa8 {[%clk 0:00:22.2]} 53... Re6 {[%clk 0:00:15.8]} 54. Qb8
{[%clk 0:00:23.4]} 54... Rg6 {[%clk 0:00:16.6]} 55. Qa8 {[%clk 0:00:24.3]} 55...
Re6 {[%clk 0:00:17.4]} 56. Qb8 {[%clk 0:00:25.4]} 56... Rg6 {[%clk 0:00:17.8]}
57. Qa8 {[%clk 0:00:26.4]} 57... Re6 {[%clk 0:00:18.6]} 58. Qb8 {[%clk
0:00:27.5]} 58... Rg6 {[%clk 0:00:19.2]} 1/2-1/2

[Event "*** Titled Tuesday 3|2 Blitz (Early)"]
[Site "Chess.com"]
[Date "2016.11.01"]
[Round "4"]
[White "dhanushbharadwaj"]
[Black "ftorodent"]
[Result "0-1"]
[WhiteElo "2297"]
[BlackElo "2505"]
[TimeControl "180+2"]
[EndTime "11:51:45 PDT"]
[Termination "ftorodent won by resignation"]

1. Nf3 {[%clk 0:03:02]} 1... d5 {[%clk 0:03:00.2]} 2. c4 {[%clk 0:03:02.4]} 2...
e6 {[%clk 0:03:00.5]} 3. b3 {[%clk 0:03:03]} 3... Nf6 {[%clk 0:03:00.2]} 4. g3
{[%clk 0:03:04.3]} 4... Be7 {[%clk 0:03:01.7]} 5. Bg2 {[%clk 0:03:05.5]} 5...
O-O {[%clk 0:03:03.2]} 6. O-O {[%clk 0:03:06.2]} 6... b6 {[%clk 0:03:04.3]} 7.
Bb2 {[%clk 0:03:04.2]} 7... Bb7 {[%clk 0:03:05.4]} 8. d3 {[%clk 0:03:05.7]} 8...
Nbd7 {[%clk 0:03:05.3]} 9. e3 {[%clk 0:03:07.1]} 9... c5 {[%clk 0:03:03.8]} 10.
Qe2 {[%clk 0:03:08.2]} 10... Qc7 {[%clk 0:03:04.3]} 11. Ne1 {[%clk 0:03:09.1]}
11... e5 {[%clk 0:03:01.2]} 12. cxd5 {[%clk 0:03:07.1]} 12... Bxd5 {[%clk
0:03:00.3]} 13. Nc3 {[%clk 0:03:05.7]} 13... Bxg2 {[%clk 0:03:00.3]} 14. Nxg2
{[%clk 0:03:07.6]} 14... Rad8 {[%clk 0:03:01.3]} 15. Rad1 {[%clk 0:03:06.8]}
15... Rfe8 {[%clk 0:02:52.4]} 16. Nh4 {[%clk 0:03:05.4]} 16... Bf8 {[%clk
0:02:52.4]} 17. Nf3 {[%clk 0:03:02.5]} 17... Qb7 {[%clk 0:02:44.1]} 18. Ng5
{[%clk 0:03:01.5]} 18... h6 {[%clk 0:02:31.8]} 19. Nge4 {[%clk 0:03:02]} 19...
Nxe4 {[%clk 0:02:30.2]} 20. dxe4 {[%clk 0:03:00.1]} 20... Nf6 {[%clk 0:02:31.2]}
21. Qc4 {[%clk 0:02:59.6]} 21... Nh7 {[%clk 0:02:02.5]} 22. h4 {[%clk
0:02:57.9]} 22... Nf6 {[%clk 0:01:59.8]} 23. a4 {[%clk 0:02:55.7]} 23... Qc8
{[%clk 0:01:47.8]} 24. Kg2 {[%clk 0:02:51.6]} 24... Rxd1 {[%clk 0:01:47.7]} 25.
Rxd1 {[%clk 0:02:51.4]} 25... Rd8 {[%clk 0:01:48.1]} 26. Rxd8 {[%clk 0:02:49.3]}
26... Qxd8 {[%clk 0:01:49.2]} 27. Nd5 {[%clk 0:02:50.6]} 27... Nd7 {[%clk
0:01:43.6]} 28. f4 {[%clk 0:02:46.3]} 28... Qb8 {[%clk 0:01:41.2]} 29. Qb5
{[%clk 0:02:45.7]} 29... Qd6 {[%clk 0:01:41.3]} 30. Bc3 {[%clk 0:02:27.5]} 30...
h5 {[%clk 0:01:36]} 31. Bb2 {[%clk 0:02:22.4]} 31... Qe6 {[%clk 0:01:25.5]} 32.
f5 {[%clk 0:02:09.8]} 32... Qd6 {[%clk 0:01:26.2]} 33. Qa6 {[%clk 0:02:03.1]}
33... Nf6 {[%clk 0:00:52]} 34. Qc4 {[%clk 0:02:00.5]} 34... Ng4 {[%clk
0:00:49.9]} 35. Qe2 {[%clk 0:01:57.2]} 35... Be7 {[%clk 0:00:44.5]} 36. Bc3
{[%clk 0:01:53]} 36... Bf6 {[%clk 0:00:45.1]} 37. Bb2 {[%clk 0:01:47.9]} 37...
Qd8 {[%clk 0:00:45.9]} 38. Qe1 {[%clk 0:01:40]} 38... a6 {[%clk 0:00:40]} 39.
Ba3 {[%clk 0:01:31.6]} 39... b5 {[%clk 0:00:28.3]} 40. axb5 {[%clk 0:01:24.9]}
40... axb5 {[%clk 0:00:29.5]} 41. Bxc5 {[%clk 0:01:25.9]} 41... Qa8 {[%clk
0:00:28.1]} 42. Qd2 {[%clk 0:01:16.1]} 42... Qa1 {[%clk 0:00:26.9]} 43. Be7
{[%clk 0:01:07]} 43... Qb1 {[%clk 0:00:23.4]} 44. Bxf6 {[%clk 0:00:58.9]} 44...
Qxe4+ {[%clk 0:00:23.4]} 45. Kg1 {[%clk 0:00:55.2]} 45... gxf6 {[%clk
0:00:24.5]} 46. Nc3 {[%clk 0:00:39.1]} 46... Qf3 {[%clk 0:00:24.7]} 47. Nxb5
{[%clk 0:00:34.1]} 47... Qxg3+ {[%clk 0:00:24.6]} 48. Kf1 {[%clk 0:00:34.7]}
48... Qxh4 {[%clk 0:00:19.9]} 49. Nd6 {[%clk 0:00:33.8]} 49... Qh1+ {[%clk
0:00:17.8]} 50. Ke2 {[%clk 0:00:33.3]} 50... h4 {[%clk 0:00:18.3]} 51. Qe1
{[%clk 0:00:26.2]} 51... Qg2+ {[%clk 0:00:15.2]} 52. Kd1 {[%clk 0:00:27.3]}
52... h3 {[%clk 0:00:16.2]} 53. Ne4 {[%clk 0:00:21.5]} 53... Qxe4 {[%clk
0:00:15.5]} 54. Qg3 {[%clk 0:00:21.8]} 54... Qg2 {[%clk 0:00:16]} 0-1